fUSD/lending_fUSD_20250623
["ID","MTS","AMOUNT","RATE_DAILY","PERIOD"]
[367234658,1750710642232,-705.48,0.00021974,2]
[367234660,1750710642240,-490.0,0.00021974,2]
[367234662,1750710642250,-490.0,0.00021974,2]
[367234664,1750710642260,-490.0,0.00021974,2]
[367234666,1750710642270,-1215.52,0.00021974,2]
[367234668,1750710642279,-490.0,0.00021974,2]
[367234669,1750710642289,-490.0,0.00021974,2]
[367234672,1750710642299,-320.0,0.00021974,2]
[367234673,1750710642308,-1278.48,0.00021974,2]
[367234675,1750710642318,-490.0,0.00021974,2]
[367234678,1750710642327,-813.65,0.00021974,2]
[367234680,1750710642336,-490.0,0.00021974,2]
[367234682,1750710642346,-169.103804,0.00021974,2]
[367234683,1750710642355,-490.0,0.00021974,2]
[367234685,1750710642364,-780.12,0.00021974,2]
[367234687,1750710642374,-1690.13,0.00021974,2]
[367234689,1750710642383,-490.0,0.00021974,2]
[367234691,1750710642392,-1682.76,0.00021974,2]
[367234694,1750710642402,-490.0,0.00021974,2]
[367234696,1750710642412,-151.476985,0.00021974,2]
[367234698,1750710642421,-490.0,0.00021974,2]
[367234699,1750710642431,-490.0,0.00021974,2]
[367234702,1750710642440,-490.0,0.00021974,2]
[367234704,1750710642449,-623.02,0.00021974,2]
[367234705,1750710642459,-685.94,0.00021974,2]
[367234707,1750710642468,-916.88,0.00021974,2]
[367234709,1750710642477,-564.89,0.00021974,2]
[367234711,1750710642486,-5710.14,0.00021974,2]
[367234713,1750710642495,-677.08,0.00021974,2]
[367234715,1750710642505,-490.0,0.00021974,2]
[367234717,1750710642514,-490.0,0.00021974,2]
[367234719,1750710642523,-490.0,0.00021974,2]
[367234721,1750710642533,-490.0,0.00021974,2]
[367234723,1750710642542,-710.38,0.00021974,2]
[367234725,1750710642552,-791.69,0.00021974,2]
[367234727,1750710642562,-151.527612,0.00021974,2]
[367234729,1750710642572,-827.73,0.00021974,2]
[367234731,1750710642581,-490.0,0.00021974,2]
[367234733,1750710642591,-690.85,0.00021974,2]
[367234735,1750710642601,-976.52,0.00021974,2]
[367234737,1750710642611,-652.69,0.00021974,2]
[367234739,1750710642620,-490.0,0.00021974,2]
[367234741,1750710642630,-1019.96,0.00021974,2]
[367234743,1750710642639,-490.0,0.00021974,2]
[367234745,1750710642649,-983.64,0.00021974,2]
[367234747,1750710642659,-581.36,0.00021974,2]
[367234749,1750710642668,-626.95,0.00021974,2]
[367234751,1750710642678,-1245.94,0.00021974,2]
[367234755,1750710642688,-490.0,0.00021974,2]
[367234757,1750710642697,-748.47,0.00021974,2]
[367234758,1750710642706,-1017.96,0.00021974,2]
[367234762,1750710642715,-490.0,0.00021974,2]
[367234764,1750710642725,-737.21,0.00021974,2]
[367234766,1750710642735,-490.0,0.00021974,2]
[367234768,1750710642744,-164.703373,0.00021974,2]
[367234770,1750710642755,-696.34,0.00021974,2]
[367234772,1750710642764,-1837.34,0.00021974,2]
[367234774,1750710642773,-944.25,0.00021974,2]
[367234776,1750710642785,-623.24,0.00021974,2]
[367234778,1750710642796,-563.53,0.00021974,2]
[367234781,1750710642806,-2312.42,0.00021974,2]
[367234783,1750710642815,-490.0,0.00021974,2]
[367234785,1750710642825,-792.73,0.00021974,2]
[367234787,1750710642835,-152.460564,0.00021974,2]
[367234789,1750710642844,-491.69229951,0.00021974,2]
[367234791,1750710642853,-1790.2,0.00021974,2]
[367234793,1750710642863,-583.47,0.00021974,2]
[367234796,1750710642873,-153.552939,0.00021974,2]
[367234799,1750710642883,-216.64629973,0.00021974,2]
[367234801,1750710642892,-490.0,0.00021974,2]
[367234804,1750710642901,-500.0,0.00021974,2]
[367234808,1750710642911,-1619.67,0.00021974,2]
[367234811,1750710642920,-262.38278019,0.00021974,2]
[367234814,1750710642930,-809.54,0.00021974,2]
[367234818,1750710642939,-490.0,0.00021974,2]
[367234822,1750710642949,-710.19,0.00021974,2]
[367234825,1750710642958,-512.89,0.00021974,2]
[367234828,1750710642967,-346.87452426,0.00021974,2]
[367234831,1750710642977,-224.089707,0.00021974,2]
[367234834,1750710642987,-1722.12,0.00021974,2]
[367234838,1750710642996,-490.0,0.00021974,2]
[367234840,1750710643006,-490.0,0.00021974,2]
[367234843,1750710643016,-671.05,0.00021974,2]
[367234846,1750710643025,-490.0,0.00021974,2]
[367234849,1750710643035,-3651.51,0.00021974,2]
[367234852,1750710643044,-490.0,0.00021974,2]
[367234868,1750710643132,-1510.49,0.00021974,2]
[367234870,1750710643141,-1499.9,0.00021974,2]
[367234872,1750710643151,-490.0,0.00021974,2]
[367234873,1750710643160,-1061.63,0.00021974,2]
[367234875,1750710643170,-490.0,0.00021974,2]
[367234877,1750710643180,-498.99,0.00021974,2]
[367234879,1750710643189,-1303.07,0.00021974,2]
[367234881,1750710643198,-490.0,0.00021974,2]
[367234883,1750710643207,-151.657518,0.00021974,2]
[367234885,1750710643217,-899.37,0.00021974,2]
[367234887,1750710643226,-490.7212881,0.00021974,2]
[367234889,1750710643236,-1086.74,0.00021974,2]
[367234891,1750710643244,-868.91,0.00021974,2]
[367234893,1750710643254,-490.0,0.00021974,2]
[367234895,1750710643263,-490.0,0.00021974,2]
[367234897,1750710643272,-610.71,0.00021974,2]
[367234899,1750710643283,-490.0,0.00021974,2]
[367234901,1750710643292,-2640.99,0.00021974,2]
[367234903,1750710643301,-493.04230132,0.00021974,2]
[367234905,1750710643310,-490.0,0.00021974,2]
[367234907,1750710643319,-500.0,0.00021974,2]
[367234909,1750710643328,-500.0,0.00021974,2]
[367234911,1750710643337,-490.0,0.00021974,2]
[367234913,1750710643347,-1071.59,0.00021974,2]
[367234915,1750710643356,-1580.13,0.00021974,2]
[367234917,1750710643365,-1192.36,0.00021974,2]
[367234919,1750710643375,-751.77,0.00021974,2]
[367234921,1750710643384,-734.85,0.00021974,2]
[367234923,1750710643393,-3672.09,0.00021974,2]
[367234925,1750710643402,-490.0,0.00021974,2]
[367234928,1750710643412,-1556.84,0.00021974,2]
[367234931,1750710643421,-1653.6,0.00021974,2]
[367234934,1750710643431,-490.0,0.00021974,2]
[367234937,1750710643440,-2003.29,0.00021974,2]
[367234940,1750710643451,-1092.9,0.00021974,2]
[367234942,1750710643460,-490.0,0.00021974,2]
[367234943,1750710643470,-1185.18,0.00021974,2]
[367234944,1750710643480,-588.2,0.00021974,2]
[367234946,1750710643489,-490.0,0.00021974,2]
[367234947,1750710643499,-1546.76,0.00021974,2]
[367234948,1750710643512,-490.0,0.00021974,2]
[367234949,1750710643521,-490.0,0.00021974,2]
[367234950,1750710643531,-571.4,0.00021974,2]
[367234951,1750710643539,-490.0,0.00021974,2]
[367234952,1750710643549,-500.0,0.00021974,2]
[367234953,1750710643558,-500.0,0.00021974,2]
[367234954,1750710643566,-490.0,0.00021974,2]
[367234955,1750710643576,-490.0,0.00021974,2]
[367234956,1750710643585,-490.0,0.00021974,2]
[367234957,1750710643594,-490.0,0.00021974,2]
[367234958,1750710643604,-490.0,0.00021975,2]
[367234959,1750710643613,-492.8490396,0.00021975,2]
[367234960,1750710643622,-490.82898437,0.00021975,2]
[367234961,1750710643632,-497.3195658,0.00021975,2]
[367234962,1750710643641,-490.59791497,0.00021975,2]
[367234963,1750710643651,-492.29319043,0.00021975,2]
[367234964,1750710643661,-490.75210661,0.00021975,2]
[367234965,1750710643671,-498.90611922,0.00021975,2]
[367234966,1750710643679,-481.72268005,0.00021975,2]
[367234967,1750710643689,-490.0,0.00021975,2]
[367234968,1750710643698,-315.50514081,0.00021975,2]
[367234969,1750710643708,-490.0,0.00021975,2]
[367234970,1750710643717,-490.0,0.00021975,2]
[367234971,1750710643727,-490.0,0.00021975,2]
[367234972,1750710643736,-490.0,0.00021975,2]
[367234973,1750710643745,-490.0,0.00021975,2]
[367234974,1750710643755,-524.0,0.00021975,2]
[367234975,1750710643764,-230.61592983,0.00021975,2]
[367234976,1750710643773,-735.39,0.00021975,2]
[367234977,1750710643783,-490.0,0.00021975,2]
[367234978,1750710643795,-490.0,0.00021975,2]
[367234979,1750710643805,-490.0,0.00021975,2]
[367234980,1750710643814,-490.0,0.00021975,2]
[367234981,1750710643823,-490.0,0.00021975,2]
[367234982,1750710643833,-500.0,0.00021975,2]
[367234983,1750710643843,-490.0,0.00021975,2]
[367234984,1750710643852,-490.0,0.00021975,2]
[367234985,1750710643862,-990.71,0.00021975,2]
[367234986,1750710643872,-490.0,0.00021975,2]
[367234987,1750710643881,-575.57,0.00021975,2]
[367234988,1750710643890,-490.0,0.00021975,2]
[367234989,1750710643899,-772.61,0.00021975,2]
[367234990,1750710643908,-490.0,0.00021975,2]
[367234991,1750710643917,-491.06,0.00021975,2]
[367234992,1750710643927,-490.0,0.00021975,2]
[367234993,1750710643935,-490.0,0.00021975,2]
[367234994,1750710643945,-490.0,0.00021975,2]
[367234995,1750710643954,-490.09,0.00021975,2]
[367234996,1750710643963,-490.0,0.00021975,2]
[367234997,1750710643972,-490.0,0.00021975,2]
[367234998,1750710643981,-231.16591994,0.00021975,2]
[367234999,1750710643991,-490.0,0.00021975,2]
[367235000,1750710644000,-915.69,0.00021975,2]
[367235001,1750710644011,-490.0,0.00021975,2]
[367235002,1750710644020,-490.1999842,0.00021975,2]
[367235003,1750710644029,-490.0,0.00021975,2]
[367235004,1750710644039,-500.0,0.00021975,2]
[367235005,1750710644048,-490.0,0.00021975,2]
[367235006,1750710644058,-490.0,0.00021975,2]
[367235007,1750710644067,-490.0,0.00021975,2]
[367235008,1750710644076,-628.66,0.00021975,2]
[367235009,1750710644086,-490.0,0.00021975,2]
[367235010,1750710644095,-490.0,0.00021975,2]
[367235011,1750710644104,-506.59,0.00021975,2]
[367235012,1750710644113,-490.0,0.00021975,2]
[367235013,1750710644123,-490.0,0.00021975,2]
[367235014,1750710644132,-490.0,0.00021975,2]
[367235015,1750710644142,-490.0,0.00021975,2]
[367235016,1750710644151,-490.0,0.00021975,2]
[367235017,1750710644160,-490.0,0.00021975,2]
[367235018,1750710644169,-582.75,0.00021975,2]
[367235019,1750710644178,-490.0,0.00021975,2]
[367235020,1750710644188,-490.0,0.00021975,2]
[367235021,1750710644197,-519.04,0.00021975,2]
[367235022,1750710644206,-490.0,0.00021975,2]
[367235024,1750710644215,-490.0,0.00021975,2]
[367235026,1750710644225,-490.0,0.00021975,2]
[367235028,1750710644234,-495.36080017,0.00021975,2]
[367235030,1750710644243,-490.0,0.00021975,2]
[367235031,1750710644252,-490.0,0.00021975,2]
[367235032,1750710644263,-490.0,0.00021975,2]
[367235033,1750710644273,-490.0,0.00021975,2]
[367235035,1750710644282,-967.15,0.00021975,2]
[367235037,1750710644291,-490.0,0.00021975,2]
[367235038,1750710644301,-875.78,0.00021975,2]
[367235040,1750710644310,-490.0,0.00021975,2]
[367235042,1750710644320,-490.0,0.00021975,2]
[367235044,1750710644329,-337.75479139,0.00021975,2]
[367235046,1750710644339,-490.0,0.00021975,2]
[367235048,1750710644348,-490.0,0.00021975,2]
[367235050,1750710644358,-490.0,0.00021975,2]
[367235052,1750710644367,-660.28,0.00021975,2]
[367235054,1750710644376,-490.0,0.00021975,2]
[367235055,1750710644385,-490.0,0.00021975,2]
[367235057,1750710644394,-490.0,0.00021975,2]
[367235059,1750710644403,-559.12,0.00021975,2]
[367235061,1750710644413,-651.17,0.00021975,2]
[367235063,1750710644422,-490.0,0.00021975,2]
[367235065,1750710644431,-1191.4,0.00021975,2]
[367235067,1750710644441,-490.0,0.00021975,2]
[367235069,1750710644451,-490.0,0.00021975,2]
[367235071,1750710644461,-490.0,0.00021975,2]
[367235072,1750710644471,-1026.87,0.00021975,2]
[367235074,1750710644480,-490.0,0.00021975,2]
[367235076,1750710644489,-1291.46,0.00021975,2]
[367235078,1750710644499,-490.0,0.00021975,2]
[367235080,1750710644509,-981.07,0.00021975,2]
[367235082,1750710644519,-577.24,0.00021975,2]
[367235084,1750710644528,-490.0,0.00021975,2]
[367235086,1750710644538,-595.99,0.00021975,2]
[367235088,1750710644548,-710.64,0.00021975,2]
[367235089,1750710644557,-1205.14,0.00021975,2]
[367235091,1750710644567,-1342.57,0.00021975,2]
[367235093,1750710644577,-490.0,0.00021975,2]
[367235095,1750710644586,-533.71,0.00021975,2]
[367235097,1750710644596,-679.31,0.00021975,2]
[367235099,1750710644606,-530.58,0.00021975,2]
[367235101,1750710644615,-490.0,0.00021975,2]
[367235103,1750710644624,-837.78,0.00021975,2]
[367235105,1750710644634,-1179.84,0.00021975,2]
[367235107,1750710644644,-961.11,0.00021975,2]
[367235108,1750710644654,-1136.53,0.00021975,2]
[367235110,1750710644663,-1068.72,0.00021975,2]
[367235112,1750710644672,-1354.21,0.00021975,2]
[367235114,1750710644682,-754.22,0.00021975,2]
[367235116,1750710644693,-986.32,0.00021975,2]
[367235118,1750710644702,-1008.06,0.00021975,2]
[367235120,1750710644712,-490.0,0.00021975,2]
[367235122,1750710644721,-751.37,0.00021975,2]
[367235123,1750710644731,-2029.07,0.00021975,2]
[367235125,1750710644740,-1038.6,0.00021975,2]
[367235127,1750710644750,-1214.25,0.00021975,2]
[367235129,1750710644760,-490.0,0.00021975,2]
[367235131,1750710644770,-490.0,0.00021975,2]
[367235133,1750710644779,-548.28,0.00021975,2]
[367235135,1750710644789,-490.0,0.00021975,2]
[367235137,1750710644800,-1332.77,0.00021975,2]
[367235138,1750710644810,-1759.61,0.00021975,2]
[367235140,1750710644819,-506.1,0.00021975,2]
[367235142,1750710644828,-819.81,0.00021975,2]
[367235144,1750710644838,-650.5,0.00021975,2]
[367235146,1750710644847,-490.0,0.00021975,2]
[367235148,1750710644856,-1002.2,0.00021975,2]
[367235149,1750710644866,-220.2,0.00021975,2]
[367235151,1750710644876,-931.92,0.00021975,2]
[367235153,1750710644885,-1531.41,0.00021975,2]
[367235155,1750710644895,-234.30317,0.00021975,7]
[367235157,1750710644905,-1052.06,0.00021975,2]
[367235159,1750710644914,-490.0,0.00021975,2]
[367235161,1750710644923,-652.81,0.00021975,2]
[367235163,1750710644932,-490.0,0.00021975,2]
[367235165,1750710644942,-490.0,0.00021975,2]
[367235167,1750710644951,-151.0,0.00021975,7]
[367235168,1750710644959,-152.020867,0.00021975,7]
[367235170,1750710644968,-288.315444,0.00021975,7]
[367235172,1750710644977,-2603.63,0.00021977,2]
[367235174,1750710644986,-150.0,0.0002199,2]
[367235176,1750710644995,-500.0,0.00022002,2]
[367235178,1750710645007,-13580.88016822,0.00022003,2]
[367235180,1750710645016,-158046.87775952,0.00022003,2]
[367235181,1750710645025,-490.0,0.00022003,2]
[367235183,1750710645034,-218.99347984,0.00022003,2]
[367235185,1750710645043,-490.0,0.00022003,2]
[367235187,1750710645053,-490.0,0.00022003,2]
[367235189,1750710645062,-492.14000265,0.00022003,2]
[367235191,1750710645071,-490.0,0.00022003,2]
[367235193,1750710645081,-490.0,0.00022003,2]
[367235195,1750710645091,-490.0,0.00022003,2]
[367235197,1750710645100,-490.0,0.00022003,2]
[367235199,1750710645109,-490.0,0.00022003,2]
[367235201,1750710645119,-490.0,0.00022003,2]
[367235203,1750710645128,-490.0,0.00022003,2]
[367235205,1750710645137,-490.0,0.00022003,2]
[367235207,1750710645146,-490.0,0.00022003,2]
[367235209,1750710645155,-617.01,0.00022003,2]
[367235211,1750710645165,-539.88,0.00022003,2]
[367235213,1750710645175,-498.74,0.00022003,2]
[367235215,1750710645184,-490.0,0.00022003,2]
[367235217,1750710645195,-490.0,0.00022003,2]
[367235219,1750710645205,-490.0,0.00022003,2]
[367235221,1750710645215,-490.0,0.00022003,2]
[367235223,1750710645225,-490.0,0.00022003,2]
[367235225,1750710645234,-490.0,0.00022003,2]
[367235227,1750710645243,-490.0,0.00022003,2]
[367235229,1750710645252,-490.0,0.00022003,2]
[367235231,1750710645263,-490.0,0.00022003,2]
[367235233,1750710645272,-490.0,0.00022003,2]
[367235235,1750710645281,-490.0,0.00022003,2]
[367235237,1750710645290,-490.0,0.00022003,2]
[367235239,1750710645299,-490.0,0.00022003,2]
[367235241,1750710645309,-490.0,0.00022003,2]
[367235243,1750710645318,-490.0,0.00022003,2]
[367235245,1750710645328,-178.98830907,0.00022003,2]
[367235247,1750710645337,-490.0,0.00022003,2]
[367235249,1750710645348,-490.0,0.00022003,2]
[367235251,1750710645357,-681.88,0.00022003,2]
[367235253,1750710645367,-490.0,0.00022003,2]
[367235255,1750710645376,-490.0,0.00022003,2]
[367235257,1750710645386,-490.0,0.00022003,2]
[367235259,1750710645395,-490.0,0.00022003,2]
[367235261,1750710645404,-490.0,0.00022003,2]
[367235263,1750710645413,-490.0,0.00022003,2]
[367235265,1750710645422,-490.0,0.00022003,2]
[367235267,1750710645432,-490.0,0.00022003,2]
[367235269,1750710645442,-490.0,0.00022003,2]
[367235271,1750710645451,-490.0,0.00022003,2]
[367235272,1750710645460,-490.0,0.00022003,2]
[367235273,1750710645469,-490.0,0.00022003,2]
[367235274,1750710645479,-490.0,0.00022003,2]
[367235275,1750710645488,-490.0,0.00022003,2]
[367235276,1750710645497,-490.0,0.00022003,2]
[367235277,1750710645507,-490.0,0.00022003,2]
[367235278,1750710645516,-500.0,0.00022003,2]
[367235279,1750710645525,-490.0,0.00022003,2]
[367235280,1750710645535,-203.47884326,0.00022003,2]
[367235281,1750710645544,-490.0,0.00022003,2]
[367235282,1750710645554,-490.0,0.00022003,2]
[367235283,1750710645563,-717.87,0.00022003,2]
[367235284,1750710645573,-490.0,0.00022003,2]
[367235285,1750710645583,-490.0,0.00022003,2]
[367235286,1750710645592,-490.0,0.00022003,2]
[367235287,1750710645603,-490.0,0.00022003,2]
[367235288,1750710645612,-490.0,0.00022003,2]
[367235289,1750710645622,-490.0,0.00022003,2]
[367235290,1750710645631,-490.0,0.00022003,2]
[367235291,1750710645643,-500.0,0.00022003,2]
[367235292,1750710645653,-490.0,0.00022003,2]
[367235293,1750710645662,-490.0,0.00022003,2]
[367235294,1750710645671,-490.0,0.00022003,2]
[367235295,1750710645682,-490.0,0.00022003,2]
[367235296,1750710645691,-490.0,0.00022003,2]
[367235297,1750710645701,-213.46648364,0.00022003,2]
[367235298,1750710645710,-347.46852256,0.00022003,2]
[367235299,1750710645720,-490.0,0.00022003,2]
[367235300,1750710645729,-490.0,0.00022003,2]
[367235301,1750710645739,-490.0,0.00022003,2]
[367235303,1750710645748,-652.42,0.00022003,2]
[367235304,1750710645759,-490.0,0.00022003,2]
[367235306,1750710645769,-511.22,0.00022003,2]
[367235307,1750710645781,-490.0,0.00022003,2]
[367235309,1750710645794,-490.0,0.00022003,2]
[367235310,1750710645804,-490.0,0.00022003,2]
[367235312,1750710645813,-557.92369989,0.00022003,2]
[367235314,1750710645823,-574.68,0.00022003,2]
[367235316,1750710645834,-490.0,0.00022003,2]
[367235318,1750710645843,-544.43,0.00022003,2]
[367235320,1750710645852,-490.0,0.00022003,2]
[367235322,1750710645863,-490.0,0.00022003,2]
[367235325,1750710645872,-464.97326328,0.00022003,2]
[367235328,1750710645882,-561.08442549,0.00022003,2]
[367235330,1750710645891,-535.70755009,0.00022003,2]
[367235333,1750710645901,-490.0,0.00022003,2]
[367235336,1750710645910,-523.25,0.00022003,2]
[367235338,1750710645919,-490.0,0.00022003,2]
[367235340,1750710645928,-1496.89,0.00022003,2]
[367235342,1750710645938,-490.0,0.00022003,2]
[367235344,1750710645948,-613.77,0.00022003,2]
[367235346,1750710645957,-554.75,0.00022003,2]
[367235348,1750710645966,-643.23,0.00022003,2]
[367235350,1750710645976,-490.0,0.00022003,2]
[367235352,1750710645986,-631.16,0.00022003,2]
[367235354,1750710645996,-509.46,0.00022003,2]
[367235356,1750710646008,-490.0,0.00022003,2]
[367235358,1750710646017,-490.0,0.00022003,2]
[367235360,1750710646027,-500.0,0.00022003,2]
[367235362,1750710646037,-490.0,0.00022003,2]
[367235364,1750710646047,-490.0,0.00022003,2]
[367235366,1750710646056,-490.0,0.00022003,2]
[367235368,1750710646066,-697.47,0.00022003,2]
[367235370,1750710646075,-490.0,0.00022003,2]
[367235372,1750710646085,-490.0,0.00022003,2]
[367235374,1750710646095,-151.0,0.00022003,7]
[367235376,1750710646104,-490.0,0.00022003,2]
[367235378,1750710646114,-490.0,0.00022003,2]
[367235380,1750710646123,-490.0,0.00022003,2]
[367235382,1750710646133,-490.0,0.00022003,2]
[367235384,1750710646142,-490.0,0.00022003,2]
[367235386,1750710646151,-151.0,0.00022003,7]
[367235388,1750710646160,-221.531784,0.00022003,7]
[367235390,1750710646169,-221.531784,0.00022003,7]
[367235392,1750710646178,-490.0,0.00022003,2]
[367235394,1750710646188,-490.0,0.00022003,2]
[367235396,1750710646197,-490.0,0.00022003,2]
[367235398,1750710646206,-286.80100468,0.00022003,2]
[367235400,1750710646216,-288.567768,0.00022003,7]
[367235402,1750710646225,-490.0,0.00022003,2]
[367235404,1750710646234,-490.0,0.00022003,2]
[367235406,1750710646243,-1014.68,0.00022003,2]
[367235408,1750710646253,-843.4,0.00022003,2]
[367235410,1750710646264,-490.0,0.00022003,2]
[367235412,1750710646274,-490.0,0.00022003,2]
[367235413,1750710646283,-300.61263996,0.00022003,2]
[367235415,1750710646292,-490.0,0.00022003,2]
[367235417,1750710646301,-490.0,0.00022003,2]
[367235419,1750710646310,-490.0,0.00022003,2]
[367235421,1750710646319,-1658.74,0.00022003,2]
[367235423,1750710646328,-724.32,0.00022003,2]
[367235425,1750710646338,-568.4,0.00022003,2]
[367235427,1750710646347,-490.0,0.00022003,2]
[367235429,1750710646356,-690.87,0.00022003,2]
[367235431,1750710646365,-490.0,0.00022003,2]
[367235433,1750710646374,-490.0,0.00022003,2]
[367235435,1750710646383,-893.64,0.00022003,2]
[367235437,1750710646392,-490.0,0.00022003,2]
[367235439,1750710646402,-507.95,0.00022003,2]
[367235441,1750710646411,-832.18,0.00022003,2]
[367235443,1750710646420,-490.0,0.00022003,2]
[367235445,1750710646429,-702.71,0.00022003,2]
[367235447,1750710646439,-490.0,0.00022003,2]
[367235449,1750710646448,-490.0,0.00022003,2]
[367235451,1750710646457,-890.74,0.00022003,2]
[367235453,1750710646467,-772.84,0.00022003,2]
[367235455,1750710646476,-490.0,0.00022003,2]
[367235457,1750710646486,-490.0,0.00022003,2]
[367235459,1750710646495,-490.0,0.00022003,2]
[367235461,1750710646504,-490.0,0.00022003,2]
[367235463,1750710646515,-1094.4,0.00022003,2]
[367235465,1750710646524,-2061.61,0.00022003,2]
[367235467,1750710646534,-490.0,0.00022003,2]
[367235469,1750710646544,-636.31,0.00022003,2]
[367235471,1750710646555,-20274.24,0.00022003,2]
[367235473,1750710646566,-654.37,0.00022003,2]
[367235475,1750710646575,-1199.61,0.00022003,2]
[367235477,1750710646584,-151.3016939,0.00022003,2]
[367235479,1750710646593,-3329.3,0.00022003,2]
[367235481,1750710646603,-490.5691632,0.00022003,2]
[367235483,1750710646613,-490.0,0.00022003,2]
[367235485,1750710646622,-2581.27,0.00022003,2]
[367235487,1750710646631,-977.77,0.00022003,2]
[367235489,1750710646641,-235.87853202,0.00022003,2]
[367235491,1750710646650,-490.0,0.00022003,2]
[367235493,1750710646660,-1888.74,0.00022003,2]
[367235495,1750710646669,-538.49,0.00022003,2]
[367235497,1750710646678,-490.0,0.00022003,2]
[367235499,1750710646687,-271.0882388,0.00022003,2]
[367235501,1750710646696,-2037.25,0.00022003,2]
[367235503,1750710646706,-1200.34,0.00022003,2]
[367235505,1750710646715,-569.81,0.00022003,2]
[367235507,1750710646725,-492.90406442,0.00022003,2]
[367235509,1750710646735,-490.0,0.00022003,2]
[367235511,1750710646744,-935.97,0.00022003,2]
[367235513,1750710646754,-490.0,0.00022003,2]
[367235515,1750710646765,-561.15,0.00022003,2]
[367235517,1750710646775,-490.0,0.00022003,2]
[367235519,1750710646786,-1087.67,0.00022003,2]
[367235521,1750710646795,-490.47123976,0.00022003,2]
[367235523,1750710646804,-650.26,0.00022003,2]
[367235525,1750710646813,-4332.58,0.00022003,2]
[367235527,1750710646822,-653.45,0.00022003,2]
[367235529,1750710646833,-490.0,0.00022003,2]
[367235531,1750710646842,-909.2,0.00022003,2]
[367235533,1750710646852,-490.0,0.00022003,2]
[367235535,1750710646862,-539.49067407,0.00022003,2]
[367235537,1750710646871,-490.0,0.00022003,2]
[367235539,1750710646880,-490.0,0.00022003,2]
[367235541,1750710646889,-490.0,0.00022003,2]
[367235543,1750710646898,-1695.31,0.00022003,2]
[367235544,1750710646907,-635.59,0.00022003,2]
[367235546,1750710646917,-490.0,0.00022003,2]
[367235549,1750710646926,-490.0,0.00022003,2]
[367235551,1750710646935,-490.0,0.00022003,2]
[367235552,1750710646944,-490.92239133,0.00022003,2]
[367235555,1750710646954,-490.0,0.00022003,2]
[367235557,1750710646963,-490.0,0.00022003,2]
[367235559,1750710646973,-490.0,0.00022003,2]
[367235561,1750710646983,-554.61,0.00022003,2]
[367235563,1750710646992,-490.0,0.00022003,2]
[367235565,1750710647001,-490.0,0.00022003,2]
[367235567,1750710647012,-490.0,0.00022003,2]
[367235569,1750710647022,-641.74,0.00022003,2]
[367235571,1750710647032,-181.13951866,0.00022003,2]
[367235573,1750710647042,-490.0,0.00022003,2]
[367235575,1750710647051,-490.0,0.00022003,2]
[367235577,1750710647061,-492.25410079,0.00022003,2]